bitfinex-derivatives/quotes_BNBF0:USTF0_20250603
["timestamp","ask_amount","ask_price","bid_price","bid_amount"]
[1748993680589,1.0123129,660.52,660.28,0.30290179]
[1748993680791,1.0123129,660.51,660.28,0.30290179]
[1748993680985,1.12646737,660.7,660.28,0.30290179]
[1748993681190,1.01238272,660.69,660.28,0.30290179]
[1748993681386,1.01238272,660.68,660.28,0.30290179]
[1748993681591,1.01238272,660.67,660.28,0.30290179]
[1748993681786,1.12646737,660.7,660.28,0.78324483]
[1748993681787,1.01238272,660.66,660.28,0.78324483]
[1748993681987,1.01238272,660.65,660.28,0.78324483]
[1748993682190,1.01238272,660.64,660.28,0.30290179]
[1748993682390,1.01238272,660.63,660.28,0.30290179]
[1748993682591,1.01238272,660.62,660.28,0.78324483]
[1748993682791,1.01252014,660.61,660.28,0.78324483]
[1748993682989,1.01252014,660.6,660.28,0.78324483]
[1748993683193,1.01252014,660.59,660.28,0.78324483]
[1748993683492,1.01252014,660.58,660.28,0.78324483]
[1748993683689,1.01252014,660.57,660.29,0.48034304]
[1748993683894,1.01252014,660.56,660.3,0.30289262]
[1748993684192,1.01252014,660.55,660.3,0.30289262]
[1748993684393,1.01252014,660.54,660.3,0.30289262]
[1748993684695,1.01252014,660.53,660.3,0.30289262]
[1748993684989,1.01252014,660.52,660.3,0.30289262]
[1748993685195,1.01252014,660.51,660.3,0.30289262]
[1748993685393,1.01252014,660.5,660.3,0.30289262]
[1748993685587,1.12663791,660.69,660.3,0.30289262]
[1748993685791,1.01268171,660.68,660.3,0.30289262]
[1748993685993,1.01268171,660.67,660.3,0.30289262]
[1748993686193,1.01268171,660.66,660.3,0.30289262]
[1748993686488,1.01268171,660.65,660.3,0.30289262]
[1748993686693,1.01268171,660.64,660.3,0.30289262]
[1748993686894,1.01275805,660.63,660.3,0.30289262]
[1748993687093,1.01275805,660.62,660.3,0.30289262]
[1748993687293,1.01275805,660.61,660.3,0.30289262]
[1748993687493,1.12690242,660.69,660.3,0.30289262]
[1748993687494,1.01275805,660.6,660.3,0.30289262]
[1748993687692,1.01275805,660.59,660.3,0.78323566]
[1748993687890,1.01275805,660.58,660.3,0.78323566]
[1748993688091,1.01275805,660.57,660.3,0.78323566]
[1748993688295,1.01275805,660.56,660.3,0.78323566]
[1748993688495,1.01275805,660.55,660.3,0.78323566]
[1748993688690,1.01275805,660.54,660.3,0.78323566]
[1748993688897,1.01275805,660.53,660.3,0.78323566]
[1748993689095,1.01275805,660.52,660.3,0.78323566]
[1748993689395,1.01275805,660.51,660.3,0.78323566]
[1748993689591,1.01275805,660.5,660.31,0.48034304]
[1748993689797,1.01275805,660.49,660.32,0.30288345]
[1748993689995,1.12690242,660.68,660.32,0.30288345]
[1748993690192,1.01324827,660.67,660.32,0.30288345]
[1748993690392,1.01324827,660.66,660.32,0.30288345]
[1748993690592,1.0133218,660.65,660.32,0.30288345]
[1748993690798,1.0133218,660.64,660.32,0.78322649]
[1748993690993,1.0133218,660.63,660.32,0.78322649]
[1748993691198,1.0133218,660.62,660.32,0.78322649]
[1748993691397,1.0133218,660.61,660.32,0.78322649]
[1748993691594,1.0133218,660.6,660.33,0.48034304]
[1748993691798,1.0133218,660.59,660.34,0.30287427]
[1748993691999,1.0133218,660.58,660.34,0.30287427]
[1748993692199,1.0133218,660.57,660.34,0.30287427]
[1748993692393,1.0133218,660.56,660.34,0.30287427]
[1748993692602,1.0133218,660.55,660.34,0.78321731]
[1748993692896,1.0133218,660.54,660.34,0.78321731]
[1748993693101,1.0133218,660.53,660.34,0.78321731]
[1748993693296,1.0133218,660.52,660.34,0.78321731]
[1748993693498,1.0133218,660.51,660.34,0.78321731]
[1748993693694,1.0133218,660.5,660.34,0.78321731]
[1748993693895,1.0133218,660.49,660.34,0.78321731]
[1748993694096,1.0133218,660.48,660.34,0.78321731]
[1748993694300,1.0133218,660.47,660.34,0.30287427]
[1748993694504,1.50195649,660.81,660.34,0.30287427]
[1748993694698,1.12785125,660.68,660.34,0.30287427]
[1748993694897,1.01337597,660.67,660.34,0.30287427]
[1748993695099,1.01337597,660.66,660.34,0.30287427]
[1748993695303,1.01337597,660.65,660.34,0.30287427]
[1748993695496,1.01337597,660.64,660.34,0.30287427]
[1748993695697,1.01337597,660.63,660.34,0.30287427]
[1748993695899,1.01337597,660.62,660.34,0.30287427]
[1748993696102,1.01337597,660.61,660.34,0.30287427]
[1748993696303,1.01337597,660.6,660.34,0.30287427]
[1748993696603,1.01337597,660.59,660.34,0.30287427]
[1748993696902,1.01337597,660.58,660.34,0.30287427]
[1748993697103,1.01337597,660.57,660.34,0.30287427]
[1748993697404,1.01337597,660.56,660.34,0.30287427]
[1748993697597,1.01337597,660.55,660.34,0.30287427]
[1748993697896,1.01337597,660.54,660.34,0.30287427]
[1748993698102,1.01337597,660.53,660.34,0.30287427]
[1748993698302,1.01337597,660.52,660.34,0.30287427]
[1748993698601,1.01392987,660.51,660.34,0.30287427]
[1748993698802,1.01392987,660.5,660.34,0.30287427]
[1748993699004,1.01392987,660.49,660.34,0.30287427]
[1748993699199,1.01392987,660.48,660.34,0.30287427]
[1748993699406,1.01392987,660.47,660.34,0.30287427]
[1748993699599,1.01392987,660.46,660.34,0.30287427]
[1748993699804,1.01392987,660.45,660.34,0.30287427]
[1748993700004,1.01392987,660.44,660.34,0.30287427]
[1748993700203,1.01392987,660.43,660.34,0.30287427]
[1748993700399,2.25177507,660.95,660.34,0.30287427]
[1748993700400,1.01457958,660.42,660.34,0.30287427]
[1748993700605,1.12846762,660.64,660.34,0.30287427]
[1748993700606,1.01457958,660.41,660.34,0.30287427]
[1748993700802,1.01457958,660.4,660.34,0.30287427]
[1748993701000,3.75295845,661.84,660.34,0.30287427]
[1748993701001,1.01457958,660.39,660.34,0.30287427]
[1748993701205,1.01457958,660.38,660.34,0.30287427]
[1748993701401,1.01443313,660.37,660.34,0.30287427]
[1748993701610,1.01443313,660.36,660.34,0.30287427]
[1748993701907,1.01443313,660.35,660.34,0.30287427]
[1748993704906,1.01373189,660.35,660.34,0.30287427]
[1748993712419,1.01249586,660.35,660.34,0.30287427]
[1748993716321,1.0120356,660.35,660.34,0.30287427]
[1748993720028,1.50195649,660.64,660.34,0.30287427]
[1748993720221,1.12677275,660.54,660.34,0.30287427]
[1748993720422,1.01193918,660.53,660.34,0.30287427]
[1748993720626,1.01193918,660.52,660.34,0.30287427]
[1748993720927,1.01193918,660.51,660.34,0.30287427]
[1748993721128,1.01193918,660.5,660.34,0.30287427]
[1748993721325,1.01193918,660.49,660.34,0.30287427]
[1748993721530,1.01193918,660.48,660.34,0.30287427]
[1748993721729,1.01193918,660.47,660.34,0.30287427]
[1748993721931,1.01193918,660.46,660.34,0.30287427]
[1748993722229,1.01193918,660.45,660.34,0.30287427]
[1748993722527,1.01193918,660.44,660.34,0.30287427]
[1748993722729,1.01193918,660.43,660.34,0.30287427]
[1748993723025,1.01193918,660.42,660.34,0.30287427]
[1748993723230,1.01193918,660.41,660.34,0.30287427]
[1748993723431,1.01193918,660.4,660.34,0.30287427]
[1748993723625,1.01193918,660.39,660.34,0.30287427]
[1748993723826,1.01193918,660.38,660.34,0.30287427]
[1748993724024,1.0119076,660.37,660.34,0.30287427]
[1748993724225,1.0119076,660.36,660.34,0.30287427]
[1748993724428,1.0119076,660.35,660.34,0.30287427]
[1748993728040,1.01179419,660.35,660.34,0.30287427]
[1748993732038,1.0117982,660.35,660.34,0.30287427]
[1748993735750,1.50195649,660.62,660.34,0.30287427]
[1748993735949,1.12644146,660.52,660.34,0.30287427]
[1748993736243,2.13824234,660.51,660.34,0.30287427]
[1748993736443,1.01180088,660.5,660.34,0.30287427]
[1748993736644,1.01180088,660.49,660.34,0.30287427]
[1748993736847,1.12644146,660.51,660.34,0.30287427]
[1748993736848,1.01180088,660.48,660.34,0.30287427]
[1748993737048,1.01180088,660.47,660.34,0.30287427]
[1748993737245,1.01180088,660.46,660.34,0.30287427]
[1748993737444,1.01180088,660.45,660.34,0.30287427]
[1748993737646,1.01180088,660.44,660.34,0.30287427]
[1748993737843,1.01180088,660.43,660.34,0.30287427]
[1748993738044,1.01180088,660.42,660.34,0.30287427]
[1748993738349,1.01180088,660.41,660.34,0.30287427]
[1748993738544,1.01180088,660.4,660.34,0.30287427]
[1748993738743,1.01180088,660.39,660.34,0.30287427]
[1748993738947,1.01176448,660.38,660.34,0.30287427]
[1748993739145,1.01176448,660.37,660.34,0.30287427]
[1748993739346,1.01176448,660.36,660.34,0.30287427]
[1748993739647,1.01176448,660.35,660.34,0.30287427]
[1748993739848,1.01175933,660.35,660.34,0.30287427]
[1748993743549,1.50195649,660.66,660.34,0.30287427]
[1748993743755,1.12669634,660.53,660.34,0.30287427]
[1748993743956,1.01199195,660.52,660.34,0.30287427]
[1748993744157,1.01199195,660.51,660.34,0.30287427]
[1748993744456,1.01199195,660.5,660.34,0.30287427]
[1748993744657,1.01199195,660.49,660.34,0.30287427]
[1748993744952,1.01199195,660.48,660.34,0.30287427]
[1748993745157,1.01199195,660.47,660.34,0.30287427]
[1748993745354,1.01199195,660.46,660.34,0.30287427]
[1748993745651,1.01199195,660.45,660.34,0.30287427]
[1748993745856,1.01199195,660.44,660.34,0.30287427]
[1748993746057,1.01199195,660.43,660.34,0.30287427]
[1748993746257,1.01199195,660.42,660.34,0.30287427]
[1748993746557,1.01199195,660.41,660.34,0.30287427]
[1748993746757,1.01199195,660.4,660.34,0.30287427]
[1748993746951,1.01199195,660.39,660.34,0.30287427]
[1748993747154,1.01199195,660.38,660.34,0.30287427]
[1748993747354,1.01199195,660.37,660.34,0.30287427]
[1748993747554,1.50195649,660.65,660.34,0.30287427]
[1748993747755,1.12725473,660.52,660.34,0.30287427]
[1748993747954,1.01252761,660.51,660.34,0.30287427]
[1748993748153,1.01252761,660.5,660.34,0.30287427]
[1748993748356,1.01252761,660.49,660.34,0.30287427]
[1748993748657,1.01252761,660.48,660.34,0.30287427]
[1748993748858,1.01252761,660.47,660.34,0.30287427]
[1748993749060,1.01252761,660.46,660.34,0.30287427]
[1748993749251,1.01252761,660.45,660.34,0.30287427]
[1748993749457,1.01252761,660.44,660.34,0.30287427]
[1748993749656,1.01252761,660.43,660.34,0.30287427]
[1748993749857,1.01252761,660.42,660.34,0.30287427]
[1748993750058,1.01252761,660.41,660.34,0.30287427]
[1748993750361,1.01252761,660.4,660.34,0.30287427]
[1748993750556,1.01252761,660.39,660.34,0.30287427]
[1748993750763,1.01252761,660.38,660.34,0.30287427]
[1748993750953,1.01252761,660.37,660.34,0.30287427]
[1748993751158,1.01252761,660.36,660.34,0.30287427]
[1748993751361,1.01252761,660.35,660.34,0.30287427]
[1748993751562,1.01291031,660.35,660.34,0.30287427]
[1748993755363,1.50195649,660.51,660.34,0.30287427]
[1748993755561,1.12799107,660.39,660.34,0.30287427]
[1748993755768,1.12799107,660.37,660.34,0.30287427]
[1748993755965,1.01399211,660.36,660.34,0.30287427]
[1748993756267,1.01399211,660.35,660.34,0.30287427]
[1748993758760,2.14198318,660.35,660.34,0.30287427]
[1748993759765,1.01399211,660.35,660.34,0.30287427]
[1748993761869,1.01681982,660.35,660.34,0.30287427]
[1748993763366,2.14539534,660.35,660.34,0.30287427]
[1748993765872,2.14495716,660.35,660.34,0.30287427]
[1748993768375,1.016541,660.35,660.34,0.30287427]
[1748993768875,2.1447255,660.35,660.34,0.30287427]
[1748993769674,2.14438621,660.35,660.34,0.30287427]
[1748993770273,1.01626049,660.35,660.34,0.30287427]
[1748993771076,2.14431376,660.35,660.34,0.30287427]
[1748993771875,1.01626049,660.35,660.34,0.30287427]
[1748993773370,1.01626049,660.35,659.84,0.26358744]
[1748993773571,1.12773113,660.31,659.85,0.30309918]
[1748993773771,1.01835381,660.3,659.85,0.30309918]
[1748993773974,1.01835381,660.29,659.85,0.30309918]
[1748993774169,1.01835381,660.28,659.85,0.30309918]
[1748993774373,1.01835381,660.27,659.85,0.30309918]
[1748993774576,1.01835381,660.26,659.85,0.30309918]
[1748993774776,1.01835381,660.25,659.85,0.30309918]
[1748993774975,1.01835381,660.24,659.85,0.30309918]
[1748993775176,1.01835381,660.23,659.85,0.30309918]
[1748993775376,3.75295845,661.62,659.85,0.30309918]
[1748993775377,1.01835381,660.22,659.85,0.30309918]
[1748993775579,1.01835381,660.21,659.85,0.30309918]
[1748993775774,1.01835381,660.2,659.85,0.30309918]
[1748993775978,1.01835381,660.19,659.85,0.30309918]
[1748993776178,1.01835381,660.18,659.85,0.30309918]
[1748993776373,1.01835381,660.17,659.85,0.30309918]
[1748993776574,1.01835381,660.16,659.85,0.30309918]
[1748993776775,1.01835381,660.15,659.85,0.30309918]
[1748993776977,1.01835381,660.14,659.85,0.30309918]
[1748993777281,1.50195649,660.64,659.85,0.30309918]
[1748993777577,1.1273954,660.45,659.85,0.30309918]
[1748993777781,1.01830391,660.44,659.85,0.30309918]
[1748993778081,1.01830391,660.43,659.85,0.30309918]
[1748993778277,1.01830391,660.42,659.85,0.30309918]
[1748993778479,1.01830391,660.41,659.85,0.30309918]
[1748993778680,1.01830391,660.4,659.85,0.30309918]
[1748993778875,1.01830391,660.39,659.85,0.30309918]
[1748993779175,1.01830391,660.38,659.85,0.30309918]
[1748993779382,1.01830391,660.37,659.85,0.30309918]
[1748993779577,1.01830391,660.36,659.85,0.30309918]
[1748993779782,1.01830391,660.35,659.85,0.30309918]
[1748993779978,1.01830391,660.34,659.85,0.30309918]
[1748993780182,1.01830391,660.33,659.85,0.30309918]
[1748993780381,1.01830391,660.32,659.85,0.30309918]
[1748993780582,1.01830391,660.31,659.85,0.30309918]
[1748993780779,1.01830391,660.3,659.85,0.30309918]
[1748993780982,1.01830391,660.29,659.85,0.30309918]
[1748993781178,1.01830391,660.28,659.85,0.30309918]
[1748993781483,1.0177411,660.27,659.85,0.30309918]
[1748993781685,1.0177411,660.26,659.85,0.30309918]
[1748993781883,1.0177411,660.25,659.85,0.30309918]
[1748993782084,1.0177411,660.24,659.85,0.30309918]
[1748993782279,1.0177411,660.23,659.85,0.30309918]
[1748993782483,1.0177411,660.22,659.85,0.30309918]
[1748993782685,1.0177411,660.21,659.85,0.30309918]
[1748993782879,1.0177411,660.2,659.85,0.30309918]
[1748993783079,1.0177411,660.19,659.85,0.30309918]
[1748993783282,1.01773765,660.18,659.85,0.30309918]
[1748993783482,1.01773765,660.17,659.85,0.30309918]
[1748993783685,1.01773765,660.16,659.85,0.30309918]
[1748993783880,1.01773765,660.15,659.85,0.30309918]
[1748993784180,1.01773765,660.14,659.85,0.30309918]
[1748993784385,1.01773765,660.13,659.85,0.30309918]
[1748993784685,1.12730698,660.39,659.85,0.30309918]
[1748993784886,1.01772782,660.38,659.85,0.30309918]
[1748993785185,1.01771845,660.37,659.85,0.30309918]
[1748993785385,1.01771845,660.36,659.85,0.30309918]
[1748993785686,1.01771845,660.35,659.85,0.30309918]
[1748993785881,1.01771845,660.34,659.85,0.30309918]
[1748993786088,1.01771845,660.33,659.85,0.30309918]
[1748993786287,1.01771845,660.32,659.85,0.30309918]
[1748993786587,1.01771845,660.31,659.85,0.30309918]
[1748993786787,1.01771845,660.3,659.85,0.30309918]
[1748993786987,1.01771845,660.29,659.85,0.30309918]
[1748993787286,1.12728596,660.39,659.85,0.30309918]
[1748993787287,1.01771845,660.28,659.85,0.30309918]
[1748993787485,1.01771845,660.27,659.85,0.30309918]
[1748993787686,1.01771845,660.26,659.85,0.30309918]
[1748993787884,1.12728596,660.39,659.85,0.30309918]
[1748993787885,1.01771845,660.25,659.85,0.30309918]
[1748993788084,1.01771845,660.24,659.85,0.30309918]
[1748993788283,1.01771845,660.23,659.85,0.30309918]
[1748993788490,1.01771845,660.22,659.85,0.30309918]
[1748993788691,1.01771845,660.21,659.85,0.30309918]
[1748993788891,1.01728271,660.2,659.85,0.30309918]
[1748993789094,1.01728271,660.19,659.85,0.30309918]
[1748993789289,1.01728271,660.18,659.85,0.30309918]
[1748993789488,1.01728271,660.17,659.85,0.30309918]
[1748993789687,1.01728271,660.16,659.85,0.30309918]
[1748993789886,1.01728271,660.15,659.85,0.30309918]
[1748993790087,1.01728271,660.14,659.85,0.30309918]
[1748993790390,1.01728271,660.13,659.85,0.30309918]
[1748993790589,1.12736226,660.37,659.85,0.30309918]
[1748993790792,1.01734601,660.36,659.85,0.30309918]
[1748993790996,1.01734601,660.35,659.85,0.30309918]
[1748993791292,1.01734601,660.34,659.85,0.30309918]
[1748993791494,1.01734601,660.33,659.85,0.30309918]
[1748993791692,1.01734601,660.32,659.85,0.30309918]
[1748993791888,1.01734601,660.31,659.85,0.30309918]
[1748993792092,1.01734601,660.3,659.85,0.30309918]
[1748993792394,1.01734601,660.29,659.85,0.30309918]
[1748993792593,1.01734601,660.28,659.85,0.30309918]
[1748993792793,1.01745203,660.27,659.85,0.30309918]
[1748993792990,1.01745203,660.26,659.97,0.48034304]
[1748993793193,1.01745203,660.25,659.98,0.30303948]
[1748993793395,1.01745203,660.24,659.98,0.30303948]
[1748993793594,1.01745203,660.23,659.98,0.78338252]
[1748993793795,1.01745203,660.22,659.98,0.30303948]
[1748993793993,1.01745203,660.21,659.98,0.30303948]
[1748993794193,1.01745203,660.2,659.98,0.30303948]
[1748993794397,1.01745203,660.19,659.98,0.30303948]
[1748993794593,1.01745203,660.18,659.98,0.30303948]
[1748993794794,1.01745203,660.17,659.98,0.30303948]
[1748993794990,1.01745203,660.16,659.98,0.30303948]
[1748993795194,1.01745203,660.15,659.98,0.30303948]
[1748993795393,1.12755004,660.38,659.98,0.30303948]
[1748993795595,1.01770454,660.37,659.98,0.30303948]
[1748993795894,1.01770454,660.36,659.98,0.30303948]
[1748993796093,1.01770454,660.35,659.98,0.30303948]
[1748993796290,1.01770454,660.34,659.98,0.30303948]
[1748993796595,1.50195649,660.56,659.98,0.30303948]
[1748993796798,1.12755872,660.41,659.98,0.30303948]
[1748993796995,1.01776929,660.4,659.98,0.30303948]
[1748993797191,1.01776929,660.39,659.98,0.30303948]
[1748993797390,1.01776929,660.38,659.98,0.30303948]
[1748993797594,1.01776929,660.37,659.98,0.30303948]
[1748993797796,1.01776929,660.36,659.98,0.30303948]
[1748993797994,1.01776929,660.35,659.98,0.30303948]
[1748993798196,1.01776929,660.34,659.98,0.30303948]
[1748993798395,1.01776929,660.33,659.98,0.30303948]
[1748993798595,1.01776929,660.32,659.98,0.30303948]
[1748993798796,1.01776929,660.31,659.98,0.30303948]
[1748993798995,1.01776929,660.3,659.98,0.30303948]
[1748993799196,2.25177507,660.74,659.98,0.30303948]
[1748993799796,1.12782753,660.45,659.98,0.30303948]
[1748993800918,1.01814329,660.44,659.98,0.30303948]
[1748993801395,1.01814329,660.43,659.98,0.30303948]
[1748993801600,1.50377004,660.6,659.98,0.30303948]
[1748993802895,1.0184053,660.59,659.98,0.30303948]
[1748993804101,1.12803234,660.44,659.98,0.30303948]
[1748993804296,1.12803234,660.41,659.98,0.30303948]
[1748993804496,1.01845414,660.4,659.98,0.30303948]
[1748993804801,1.01845414,660.39,659.98,0.30303948]
[1748993805002,1.01845414,660.38,659.98,0.30303948]
[1748993805301,1.01845414,660.37,659.98,0.30303948]
[1748993805501,1.01845414,660.36,659.98,0.30303948]
[1748993805801,1.01845414,660.35,659.98,0.30303948]
[1748993806001,1.01845414,660.34,659.98,0.30303948]
[1748993806195,1.01845414,660.33,659.98,0.30303948]
[1748993806398,1.01845414,660.32,659.98,0.30303948]
[1748993806598,1.01845414,660.31,659.98,0.30303948]
[1748993806800,1.01845414,660.3,659.98,0.30303948]
[1748993806995,1.12803234,660.4,659.98,0.30303948]
[1748993806996,1.01845414,660.29,659.98,0.30303948]
[1748993807203,1.01845414,660.28,659.98,0.30303948]
[1748993807403,1.01845414,660.27,659.98,0.30303948]
[1748993807600,1.01845414,660.26,659.98,0.30303948]
[1748993807801,1.01845414,660.25,659.98,0.30303948]
[1748993808103,1.01845414,660.24,659.98,0.30303948]
[1748993808303,1.01845414,660.23,659.98,0.30303948]
[1748993808499,1.01845414,660.22,659.98,0.30303948]
[1748993808704,1.01845414,660.21,659.98,0.30303948]
[1748993808999,1.01845414,660.2,659.98,0.30303948]
[1748993809206,1.01845414,660.19,659.98,0.30303948]
[1748993809403,1.50377004,660.54,659.98,0.30303948]
[1748993809704,1.12847915,660.4,659.98,0.30303948]
[1748993809900,1.0190742,660.39,659.98,0.30303948]
[1748993810103,1.0190742,660.38,659.98,0.30303948]
[1748993810404,1.0190742,660.37,659.98,0.30303948]
[1748993810603,1.12847915,660.4,659.98,0.30303948]
[1748993810604,1.0190742,660.36,659.98,0.30303948]
[1748993810802,1.0190742,660.35,659.98,0.30303948]
[1748993811003,1.0190742,660.34,659.98,0.30303948]
[1748993811203,1.0190742,660.33,659.98,0.30303948]
[1748993811403,1.0190742,660.32,659.98,0.30303948]
[1748993811603,1.0190742,660.31,659.98,0.30303948]
[1748993811805,1.0190742,660.3,659.98,0.30303948]
[1748993812001,1.0190742,660.29,659.98,0.30303948]
[1748993812201,1.0190742,660.28,659.98,0.30303948]
[1748993812404,1.0190742,660.27,659.98,0.30303948]
[1748993812605,1.0190742,660.26,659.98,0.30303948]
[1748993812805,1.0184053,660.59,659.98,0.30303948]
[1748993812806,1.0190742,660.25,659.98,0.30303948]
[1748993813005,1.0190742,660.24,659.98,0.30303948]
[1748993813202,1.0190742,660.23,659.98,0.30303948]
[1748993813406,1.50377004,660.51,659.98,0.30303948]
[1748993813407,1.01959795,660.22,659.98,0.30303948]
[1748993813603,1.01959795,660.21,659.98,0.30303948]
[1748993813908,1.01959795,660.2,659.98,0.30303948]
[1748993814105,1.01959795,660.19,659.98,0.30303948]
[1748993814312,1.01959795,660.18,659.98,0.30303948]
[1748993814508,1.01959795,660.17,659.98,0.30303948]
[1748993814712,1.01959795,660.16,659.98,0.30303948]
[1748993814908,1.01959795,660.15,659.98,0.30303948]
[1748993815111,1.12889774,660.35,659.98,0.30303948]
[1748993815310,1.01975704,660.34,659.98,0.30303948]
[1748993815612,1.01975704,660.33,659.98,0.30303948]
[1748993815813,1.01975704,660.32,659.98,0.30303948]
[1748993816011,1.01975704,660.31,659.98,0.30303948]
[1748993816212,1.01975704,660.3,659.98,0.30303948]
[1748993816409,1.01975704,660.29,659.98,0.30303948]
[1748993816607,1.01975704,660.28,659.98,0.30303948]
[1748993816807,1.01975704,660.27,659.98,0.30303948]
[1748993817011,1.01975704,660.26,659.98,0.30303948]
[1748993817312,1.12889774,660.35,659.98,0.30303948]
[1748993817313,1.01975704,660.25,659.98,0.30303948]
[1748993817512,1.01975704,660.24,659.98,0.30303948]
[1748993817713,1.01975704,660.23,659.98,0.30303948]
[1748993817907,1.01975704,660.22,659.98,0.30303948]
[1748993818109,1.01975704,660.21,659.98,0.30303948]
[1748993818410,1.01975704,660.2,659.98,0.30303948]
[1748993818713,1.01975704,660.19,659.98,0.78502591]
[1748993818914,1.01975704,660.18,659.98,0.78502591]
[1748993819111,1.01975704,660.17,659.98,0.78502591]
[1748993819307,1.01975704,660.16,659.98,0.78502591]
[1748993819509,1.01975704,660.15,659.98,0.78502591]
[1748993819714,1.01975704,660.14,659.98,0.78502591]
[1748993820014,1.01975704,660.13,659.98,0.78502591]
[1748993820215,1.01975704,660.12,659.98,0.30303948]
[1748993820415,1.01975704,660.11,659.98,0.30303948]
[1748993820711,1.02108998,660.1,659.98,0.30303948]
[1748993820910,1.02108998,660.09,659.98,0.30303948]
[1748993821115,1.02108998,660.08,659.98,0.30303948]
[1748993821308,1.02108998,660.07,659.98,0.30303948]
[1748993821514,1.02108998,660.06,659.98,0.30303948]
[1748993821715,1.02108998,660.05,659.98,0.30303948]
[1748993821914,1.02108998,660.04,659.98,0.30303948]
[1748993822110,1.02108998,660.03,659.98,0.30303948]
[1748993822410,1.12868598,660.25,659.98,0.30303948]
[1748993822618,1.02102014,660.24,659.98,0.30303948]
[1748993822915,1.02102014,660.23,659.98,0.30303948]
[1748993823215,1.02102014,660.22,659.98,0.30303948]
[1748993823414,1.02102014,660.21,659.98,0.30303948]
[1748993823615,1.02102014,660.2,659.98,0.30303948]
[1748993823815,1.02102014,660.19,659.98,0.30303948]
[1748993824017,1.02102014,660.18,659.98,0.30303948]
[1748993824212,1.02102014,660.17,659.98,0.30303948]
[1748993824417,1.02102014,660.16,659.98,0.30303948]
[1748993824619,1.02102014,660.15,659.98,0.30303948]
[1748993824814,1.02102014,660.14,659.98,0.30303948]
[1748993825014,1.12868598,660.25,659.98,0.30303948]
[1748993825015,1.02102014,660.13,659.98,0.30303948]
[1748993825220,1.02102014,660.12,659.98,0.30303948]
[1748993825413,1.02102014,660.11,659.98,0.30303948]
[1748993825720,1.02102014,660.1,659.98,0.30303948]
[1748993825919,1.02102014,660.09,659.98,0.30303948]
[1748993826119,1.12868598,660.25,659.98,0.30303948]
[1748993826120,1.02102014,660.08,659.98,0.30303948]
[1748993826419,1.02102014,660.07,659.98,0.30303948]
[1748993826715,1.02102014,660.06,659.98,0.30303948]
[1748993826920,1.02102014,660.05,659.98,0.30303948]
[1748993827218,1.02102014,660.04,659.98,0.30303948]
[1748993827519,1.0203416,660.03,659.98,0.30303948]
[1748993827718,1.50377004,660.37,659.98,0.30303948]
[1748993827719,1.12817981,660.25,659.98,0.30303948]
[1748993827919,1.02028216,660.24,659.98,0.30303948]
[1748993828218,1.12817981,660.25,659.98,0.30303948]
[1748993828219,1.02028216,660.23,659.98,0.30303948]
[1748993828420,1.02028216,660.22,659.98,0.30303948]
[1748993828617,1.02028216,660.21,659.98,0.30303948]
[1748993828820,1.02028216,660.2,659.98,0.30303948]
[1748993829120,1.02028216,660.19,659.98,0.30303948]
[1748993829316,1.02028216,660.18,659.98,0.30303948]
[1748993829521,1.02028216,660.17,659.98,0.30303948]
[1748993829724,1.02028216,660.16,659.98,0.30303948]
[1748993829921,1.02028216,660.15,659.98,0.30303948]
[1748993830224,1.02028216,660.14,659.98,0.30303948]
[1748993830414,1.02028216,660.13,659.98,0.30303948]
[1748993830616,1.02028216,660.12,659.98,0.30303948]
[1748993830821,1.02028216,660.11,659.98,0.30303948]
[1748993831022,1.02028216,660.1,659.98,0.30303948]
[1748993831322,1.02028216,660.09,659.98,0.30303948]
[1748993831522,1.01992716,660.08,659.98,0.30303948]
[1748993831714,1.01992716,660.07,659.98,0.30303948]
[1748993831914,1.01992716,660.06,659.98,0.30303948]
[1748993832120,1.01992716,660.05,659.98,0.30303948]
[1748993832319,1.12796004,660.24,659.98,0.30303948]
[1748993832622,1.01990207,660.23,659.98,0.30303948]
[1748993832821,1.01990207,660.22,659.98,0.30303948]
[1748993833016,1.01990207,660.21,659.98,0.30303948]
[1748993833220,1.01990207,660.2,659.98,0.30303948]
[1748993833420,1.01990207,660.19,659.98,0.30303948]
[1748993833720,1.01990207,660.18,659.98,0.30303948]
[1748993833921,1.01990207,660.17,659.98,0.30303948]
[1748993834221,1.01990207,660.16,659.98,0.30303948]
[1748993834422,1.01990207,660.15,659.98,0.30303948]
[1748993834721,1.01990207,660.14,659.98,0.30303948]
[1748993834923,1.01990207,660.13,659.98,0.30303948]
[1748993835221,1.01990207,660.12,659.98,0.30303948]
[1748993835416,1.01971716,660.11,659.98,0.30303948]
[1748993835621,1.01971716,660.1,659.98,0.30303948]
[1748993835820,1.01971716,660.09,659.98,0.30303948]
[1748993836021,1.12782621,660.33,659.98,0.30303948]
[1748993836222,1.01978891,660.32,659.98,0.30303948]
[1748993836422,1.01978891,660.31,659.98,0.30303948]
[1748993836623,1.01978891,660.3,659.98,0.30303948]
[1748993836822,1.01978891,660.29,659.98,0.30303948]
[1748993837022,1.01978891,660.28,659.98,0.30303948]
[1748993837218,1.01978891,660.27,659.98,0.30303948]
[1748993837425,1.01978891,660.26,659.98,0.30303948]
[1748993837619,1.01978891,660.25,659.98,0.30303948]
[1748993837821,1.01978891,660.24,659.98,0.30303948]